Cogmind - Beta 16 @@@ ROGUE MODE // 2026.01.23 @ 12:54:18 Player: notme Result: Destroyed by F5-P68(R) with Subdweller Beam Cannon Performance ------------- Evolutions (0) 0 Regions Visited (1) 200 Robots Destroyed (15) 75 Value Destroyed (392) 392 Prototype IDs (4) 80 Alien Tech Used (0) 0 Bonus (0) 0 TOTAL SCORE: 747 Bonus ------- None Cogmind --------- Core Integrity 0/250 Matter 252/300 Energy 160/160 System Corruption 2% Temperature Cool (9) Movement Flying (117) Ox1 Location -10/Materials Parts ------- > --- POWER (1) -------- Light Nuclear Core > --- PROPULSION (2) --- Flight Unit Flight Unit > --- UTILITY (2) ------ Small Storage Unit Sensor Array > --- WEAPON (2) ------- Welding Torch Welding Torch > --- INVENTORY (8) ---- Flight Unit Flight Unit Flight Unit Improved Heat Sink Power Shielding Weapon Shielding Grenade Launcher Mining Claw Peak State ------------ > --- POWER ------------ Light Nuclear Core > --- PROPULSION ------- Flight Unit Flight Unit > --- UTILITY ---------- Small Storage Unit Targeting Computer > --- WEAPON ----------- Medium Laser Welding Torch > --- INVENTORY -------- Flight Unit Flight Unit Flight Unit Improved Heat Sink Sensor Array Weapon Shielding Grenade Launcher Mining Claw [Rating: 10] Favorites ----------- Power Light Ion Engine Engine Light Ion Engine Power Core Light Nuclear Core Propulsion Aluminum Leg Leg Aluminum Leg Flight Unit Flight Unit Utility Small Storage Unit Device Sensor Array Storage Small Storage Unit Processor Targeting Computer Weapon Mining Claw Energy Gun EM Pulse Gun Energy Cannon Beam Cannon Ballistic Gun Assault Rifle Special Weapon Welding Torch Slashing Weapon Mining Claw Build | -11 -10 ------- Run | Yrd Mat Slots Evolved . | . . Power . | . . Propulsion . | . . Utility . | . . Weapon . | . . Parts Attached 20 | 6 14 Power 3 | 1 2 Engine 2 | 1 1 Core 1 | . 1 Reactor . | . . Propulsion 6 | 2 4 Treads . | . . Leg 4 | 2 2 Wheel . | . . Hover . | . . Flight 2 | . 2 Utility 3 | 1 2 Device 1 | . 1 Storage 1 | 1 . Processor 1 | . 1 Hackware . | . . Protection . | . . Artifact . | . . Weapon 8 | 2 6 Energy Gun 2 | 1 1 Energy Cannon 1 | . 1 Ballistic Gun 1 | 1 . Ballistic Cannon . | . . Launcher . | . . Special Weapon 2 | . 2 Impact Weapon . | . . Slashing Weapon 2 | . 2 Piercing Weapon . | . . Special Melee Weapon . | . . Unidentified Prototypes . | . . Parts Lost 4 | . 4 Power 1 | . 1 Propulsion 2 | . 2 Utility . | . . Weapon 1 | . 1 Highest Loss Streak 3 | . 3 To Critical Strikes . | . . Average Backups 6 | 1 6 Power . | . . Propulsion 1 | . 1 Utility 1 | . 1 Weapon 2 | . 2 Tool/Special . | . . Unused Backups 11 | . 11 Power . | . . Propulsion 5 | . 5 Utility 4 | . 4 Weapon 2 | . 2 Tool/Special . | . . Average Slot Usage (%) 93 | . 93 Engine 10 | . 10 Core 3 | . 3 Leg 19 | . 19 Flight 7 | . 7 Storage 14 | . 14 Processor 11 | . 11 Energy Gun 5 | . 5 Ballistic Gun 5 | . 5 Special Weapon 2 | . 2 Slashing Weapon 11 | . 11 Peak Build Rating 10 | 6 10 Average Rating 7 | 4 7 On Entrance 3 | . 6 Avg Prop Armor Cover (%) . | . . Naked Turns . | . . Heaviest Build 14 | 12 14 Greatest Support 20 | 20 20 Greatest Overweight (x) 1 | . 1 Average Overweight (x) . | . . Largest Inventory Capacity 8 | 8 8 Average Capacity 7 | 7 8 Most Carried 8 | 2 8 Average Carried 6 | 1 6 Final Capacity 8 | 8 8 Final Carried 8 | 2 8 Class Distribution -------------------- 100% | Mutant Dominant Class ---------------- Mutant | -10/Materials Resources | -11 -10 ----------- Run | Yrd Mat Matter Collected 394 | 238 156 Remotely . | . . Salvage Created 488 | . 488 Parts 30 | . 30 Haulers Intercepted . | . . Recyclers Shooed . | . . Parts Field Recycled . | . . Retrieved Matter . | . . Parts Self-Destructed . | . . Prevented . | . . Parts Restored . | . . Kills | -11 -10 ------- Run | Yrd Mat Combat Hostiles Destroyed 15 | . 15 Melee 12 | . 12 Cannons 3 | . 3 Classes Destroyed 2 | . 2 Swarmer 6 | . 6 Grunt 9 | . 9 Best Kill Streak 5 | . 5 Combat Bots Only 5 | . 5 Max Kills in Single Turn 1 | . 1 Gunslinging . | . . Exploded . | . . Melee 1 | . 1 Uniques/NPCs Destroyed . | . . Combat | -11 -10 -------- Run | Yrd Mat Hostile Shots Fired 102 | . 102 Missed 17 | . 17 Hits 85 | . 85 Projectile 85 | . 85 Critical Strikes 1 | . 1 Damage Taken 927 | . 927 Core 267 | . 267 Absorbed by Shields . | . . Regen/Repaired (Parts) 10 | . 10 Core Remaining (%) 100 | 100 . Volleys Fired 9 | . 9 Largest 1 | . 1 Hottest 60 | . 60 Shots Fired 9 | . 9 Gun 5 | . 5 Cannon 4 | . 4 Launcher . | . . Special . | . . Kinetic 3 | . 3 Thermal 4 | . 4 Explosive . | . . Electromagnetic 2 | . 2 Robot Hit Streak 6 | . 6 Robot Miss Streak 1 | . 1 Penetration Max . | . . Secondary Targets . | . . Shots Hit Robots 45 | . 45 Core Hits 18 | . 18 Critical Kills . | . . Critical Parts Destroyed . | . . Critical Strikes . | . . Melee Attacks 63 | . 63 Impact . | . . Slashing 63 | . 63 Piercing . | . . Sneak Attacks . | . . Combat Hostiles . | . . Follow-up Attacks 8 | . 8 Damage Inflicted 932 | . 932 Guns 52 | . 52 Cannons 72 | . 72 Explosions . | . . Melee 808 | . 808 Ramming . | . . Kinetic 26 | . 26 Thermal 72 | . 72 Explosive . | . . Electromagnetic 26 | . 26 Impact . | . . Slashing 808 | . 808 Piercing . | . . Highest Corruption 2 | . 2 Average Corruption 2 | . 2 Corruption Purged . | . . Corruption Blocked . | . . Effects 5 | . 5 Matter Fused 1 | . 1 Heat Flow Errors 2 | . 2 Energy Discharges 2 | . 2 Overload Shots . | . . Overflow Damage 3 | . 3 Projectiles . | . . Explosions . | . . Melee 3 | . 3 Knockbacks . | . . Impact . | . . Kinetic . | . . Secondary . | . . Self-Inflicted Damage . | . . Shots . | . . Rammed . | . . Targets Rammed . | . . Kicked . | . . Crushed . | . . Highest Temperature 207 | . 207 Average Temperature 70 | . 70 Received Heat Transfer 312 | . 312 Siege Activations . | . . Martial Activations . | . . Shielding Activations . | . . Robots Disrupted . | . . Combat Hostiles . | . . Robots Corrupted . | . . Combat Hostiles . | . . Parts Fried . | . . Impact Corruptions . | . . Robots Melted . | . . Combat Hostiles . | . . Parts Melted . | . . Heat Transferred 148 | . 148 Parts Sabotaged . | . . Parts Stolen . | . . Parts Stripped . | . . Power Chain Reactions . | . . Alert | -11 -10 ------- Run | Yrd Mat Maximum Alert Level 1 | . 1 Low Security (%) 87 | 100 86 Level 1 12 | . 13 Level 2 . | . . Level 3 . | . . Level 4 . | . . Level 5 . | . . High Security . | . . Max Security . | . . Peak Influence 241 | . 241 Initial . | . . Average 90 | . 98 Influence Increases 489 | . 489 Destroy 0b10 Robot/C 300 | . 300 Destroy Leader 60 | . 60 Successful Hack 24 | . 24 Lose Combat Pursuer 105 | . 105 Influence Decreases 314 | . 314 Time Decay 274 | . 274 Lost Part 40 | . 40 Squads Dispatched 3 | . 3 Investigation 1 | . 1 Extermination . | . . Reinforcement 2 | . 2 Assault . | . . Garrison . | . . Intercept . | . . Searches Triggered . | . . Construction Impeded . | . . Haulers Reinforced . | . . Active Scanning Responses . | . . Cargo Convoy Interrupts . | . . Stealth | -11 -10 --------- Run | Yrd Mat Distress Signals 2 | . 2 Communications Jammed . | . . Distress Signals . | . . Times Spotted 34 | . 34 Peak Tracking Total 6 | . 6 Tactical Retreats 6 | . 6 Traps | -11 -10 ------- Run | Yrd Mat Traps Triggered 1 | . 1 Indirectly . | . . Trap Hack Attempts . | . . Triggered . | . . Disarmed . | . . Reprogrammed . | . . Reused . | . . Traps Extracted . | . . Installed . | . . Triggered . | . . Machines | -11 -10 ---------- Run | Yrd Mat Machines Disabled . | . . Max in Single Turn . | . . Machines Repaired . | . . Machines Dismantled . | . . Machines Sabotaged . | . . Overloaded Fab Kills . | . . Hacking | -11 -10 --------- Run | Yrd Mat Machines Accessed 6 | . 6 Terminals 3 | . 3 Fabricators . | . . Repair Stations 1 | . 1 Recycling Units 2 | . 2 Scanalyzers . | . . Garrison Access . | . . Total Hacks 20 | . 20 Successful 11 | . 11 Failed 9 | . 9 Catastrophic 2 | . 2 Database Lockouts . | . . Manual 5 | . 5 Terminals 9 | . 9 Fabricators . | . . Repair Stations 3 | . 3 Recycling Units 8 | . 8 Scanalyzers . | . . Garrison Access . | . . Terminal Hacks 6 | . 6 Robot Analysis 1 | . 1 Prototype ID Bank 2 | . 2 Branch Access Points 1 | . 1 Recall Reinforcements 1 | . 1 Zone Layout 1 | . 1 Fabricator Hacks . | . . Repair Station Hacks 3 | . 3 Scan Component 2 | . 2 Repair 1 | . 1 Recycling Unit Hacks 2 | . 2 Retrieve Components 2 | . 2 Scanalyzer . | . . Garrison Access Hacks . | . . Unauthorized Hacks . | . . Terminals . | . . Fabricators . | . . Repair Stations . | . . Recycling Units . | . . Scanalyzers . | . . Garrison Access . | . . Data Cores Recovered . | . . Used . | . . Hacking Detections 6 | . 6 Full Trace Events 3 | . 3 Feedback Events . | . . Feedback Blocked . | . . Robot Schematics Acquired . | . . Robots Built . | . . Authchips . | . . Time . | . . Total Robot Build Rating . | . . Part Schematics Acquired . | . . Parts Built . | . . Authchips . | . . Time . | . . Total Part Build Rating . | . . Part Studies Acquired . | . . Parts Repaired 1 | . 1 Time 26 | . 26 Parts Recycled . | . . Recycled Matter . | . . Retrieved Matter . | . . Retrieved Components 18 | . 18 Parts Scanalyzed . | . . Part Schematics Acquired . | . . Parts Damaged . | . . Bothacking | -11 -10 ------------ Run | Yrd Mat Used RIF Installer . | . . Robots Hacked . | . . Non-combat . | . . Combat . | . . Robot Hacks Applied . | . . Relay Couplers Released . | . . Fabnet Peak Effective % . | . . Robots Rewired . | . . Allies Hacked . | . . Hacks Repelled . | . . Allies | -11 -10 -------- Run | Yrd Mat Total Allies . | . . Largest Group . | . . Highest-Rated Group . | . . Highest-Rated Ally . | . . Total Orders . | . . Ally Attacks . | . . Total Damage . | . . Kills . | . . Allies Corrupted . | . . Allies Melted . | . . Intel | -11 -10 ------- Run | Yrd Mat Active Infowar (turns) 49 | . 49 Sensors 49 | . 49 Robot Analysis Total 1 | . 1 Derelict Logs Recovered . | . . Drone Launches . | . . Drone Recoveries . | . . Exploration | -11 -10 ------------- Run | Yrd Mat Turns Passed 939 | 71 868 Spaces Moved 542 | 55 487 Core 7 | 7 . Treads . | . . Legs 391 | 48 343 Wheels . | . . Hover . | . . Flight 144 | . 144 Fastest Speed 50 | 50 117 Average Speed 118 | 111 119 Slowest Speed 190 | 120 190 Overloaded Moves . | . . Propulsion Burnouts . | . . Robots Hopped . | . . Potential Cave-ins . | . . Cave-ins Triggered . | . . Exploration Rate (%) 37 | 4 71 Regions Visited 1 Branch Regions . Pre-discovered Areas . | . . Known Exits Taken . | . . Unknown Exits Taken 1 | 1 . Scrap Searched . | . . Spaces Dug . | . . Terrain Destroyed . | . . Melee . | . . Projectile . | . . AOE . | . . Terrain Rammed . | . . Walls Destroyed . | . . Machines Disabled . | . . Actions | -11 -10 --------- Run | Yrd Mat Total 717 | 62 655 Wait 52 | . 52 Move 541 | 54 487 Hop . | . . Pick Up 21 | 2 19 Fast Attach 16 | 6 10 Attach 4 | . 4 Detach 1 | . 1 Swap 4 | . 4 Drop 16 | . 16 Fire 9 | . 9 Melee 53 | . 53 Ram . | . . Kick . | . . Crush . | . . Escape Stasis . | . . Rewire . | . . Trap . | . . Miscellaneous . | . . Route ------- -11/Scrapyard -10/Materials (discovered 3 exits: [*Mat] / *Min x2) History --------- Turn | Location | Event 4 | -11/Scrapyard | Discovered new exit (range 14) 72 | -11/Scrapyard | Entered Materials 305 | -10/Materials | Build established: Mutant 441 | -10/Materials | Core integrity fell below 50% 453 | -10/Materials | Lost 3 parts (1p1n1w) 536 | -10/Materials | Discovered new exit (range 10) 584 | -10/Materials | Discovered new exit (range 9) 656 | -10/Materials | Identified exit to Mines 726 | -10/Materials | Core integrity fell below 20% 772 | -10/Materials | Derelicts attacked the area 921 | -10/Materials | Repaired Flight Unit 940 | -10/Materials | Destroyed by F5-P68(R) with Subdweller Beam Cannon Last Messages --------------- 00895_ Connecting with Repair Station... >>Scan(Flight Unit) Scanning Flight Unit... Ready to Repair: Flight Unit Rating: 1 Time: 26 >>Repair Repairing Flight Unit... ETC: 26 00921_ Repair station completes Flight Unit repairs. 00921_ Acquired Flight Unit. 00922_ Connecting with Repair Station... >>Scan(Lgt. Nuclear Core) Scanning Lgt. Nuclear Core... Ready to Repair: Lgt. Nuclear Core Rating: 3 Time: 38 00926_ Acquired Power Shielding. Map ----- +----------------------------------------------------+ | ????????????? ##??????# # | | ?????????????? ???????# # | | ????????????#### #############+##### | | ????????????# #? | | ????????????# #? | | ????????????# #? | | ????????????####+######+####### #? | | ????????????# # #?# ## | | ????????????# """ # #?# | | ????????????# """ # #?# | | ????????????# """ # #?# | | ????????????# # #?# ## | | ????????????#################?# #? | | ???????????????#########??######+### | | ????############[ #??# | | ????# # """#??# """ """ | | ????# + R"#??# """ """ | | ????# """" # """#??# """ """ | | ????# """" # #??# | | ????# ^"""" #########??# | | ????# #????????########## | | ????# #??????????# | | ????# #??????????# | | ????# #??????????# | | ????# ^ [= #??????????# | | ????# [@ #??????????# | | ????# ^ [= ####? ???# | | ????# ! ## ?# | | ????# ^ %= ### | | ????### |= ! * ???# | | ??????# !% #######?????## | | ??????# * [ %#???????????# | | ??????# !!! !%= !#???????????# | | ?????## ![! #??"????????# | | ?????# ![! R # ""???????# | | ?????# R """ ## #?# | | ?????# # ## #?# | | ??######+### # ## #?# | | ??# # #########+#### | | ??# """ # # # # | | ??# """ # ##### # #""" + | | ??# """ # #???# # #""" # | | ??# + #???# + #""" # | | ??# """ # #?###+## # # # | | ??# """ # #?#*=!!# # # # | | ??# """ # #?# ""!# # ######## | | ??# # #?#=Y" # ######??????# | | ??########## #?#="" # ########???## | | ???????# #?#=[ # ## ##### | | ???????# #?# ! # ## | +----------------------------------------------------+ Best States ------------- Heat Dissipation 25 Energy Generation 14 Energy Capacity 250 Matter Stores 300 Matter Capacity 300 Sight Range 16 Robot Scan Range 14 Terrain Scan Density 10 Evasion (%) 55 Targeting Accuracy 5 Item Schematics ----------------- None Robot Schematics ------------------ None Fabricated ------------ Nothing Repaired ---------- Flight Unit | 50% | -10/Materials Studied --------- None Alien Tech Used ----------------- None Achievements -------------- None Challenges ------------ None Game ------ Seed AntimatterBoreScrapsphere Manual? 0 Play Time 00:15:13 Cumulative 17.5 hours Start 2026.01.23 @ 01:37:19 End 2026.01.23 @ 12:54:18 Sessions 3 Manual Loads 0 Difficulty Rogue Special Mode None Game No. 18 Rogue 12 Adventurer 6 Explorer 0 Win Type - Total 0 Types 0/0/0/0/0/0/0/0/0/0 Lore% 11 Gallery% 17 Achievement% 17 Wizard Run 0 Options --------- Layout 0 ASCII 0 Keyboard 1 Movement Numpad Keybinds 0 Fullscreen 1 Font 24/Smallcaps Map View 76x50 Zoom Use 0% Tactical HUD 1 Map Filters NONE Filters NONE Steam 1 RUN: e174bf53-79c2-4cfb-b1eb-bae531d8518e